fUST/lending_fUST_20260117
["ID","MTS","AMOUNT","RATE_DAILY","PERIOD"]
[402224932,1768612252526,-500.0,0.00021917,3]
[402224933,1768612252536,-500.0,0.00021917,3]
[402224934,1768612252545,-500.0,0.00021917,3]
[402224935,1768612252555,-500.0,0.00021917,3]
[402224936,1768612252564,-1720.81,0.00021917,3]
[402224937,1768612252574,-500.0,0.00021917,3]
[402224938,1768612252584,-502.37,0.00021917,3]
[402224939,1768612252594,-500.0,0.00021917,3]
[402224940,1768612252603,-817.82,0.00021917,3]
[402224941,1768612252613,-500.0,0.00021917,3]
[402224942,1768612252622,-500.0,0.00021917,3]
[402224943,1768612252631,-845.07,0.00021917,3]
[402224944,1768612252642,-500.0,0.00021917,3]
[402224945,1768612252651,-500.0,0.00021917,3]
[402224946,1768612252661,-500.0,0.00021917,3]
[402224947,1768612252670,-500.0,0.00021917,3]
[402224948,1768612252680,-500.0,0.00021917,3]
[402224949,1768612252690,-500.0,0.00021917,3]
[402224950,1768612252699,-500.0,0.00021917,3]
[402224951,1768612252711,-500.0,0.00021917,3]
[402224952,1768612252721,-1219.03,0.00021917,3]
[402224953,1768612252730,-500.0,0.00021917,3]
[402224954,1768612252740,-2478.08,0.00021917,3]
[402224955,1768612252750,-500.0,0.00021917,3]
[402224956,1768612252759,-2562.85,0.00021917,3]
[402224957,1768612252769,-500.0,0.00021917,3]
[402224958,1768612252779,-500.0,0.00021917,3]
[402224959,1768612252790,-782.08,0.00021917,3]
[402224960,1768612252800,-500.0,0.00021917,3]
[402224961,1768612252809,-1683.6,0.00021917,3]
[402224962,1768612252820,-500.0,0.00021917,3]
[402224963,1768612252830,-2019.88,0.00021917,3]
[402224964,1768612252840,-812.22,0.00021917,3]
[402224965,1768612252850,-1783.86,0.00021917,3]
[402224966,1768612252860,-2935.53,0.00021917,3]
[402224967,1768612252870,-500.0,0.00021917,3]
[402224968,1768612252880,-500.0,0.00021917,3]
[402224969,1768612252889,-618.35,0.00021917,3]
[402224970,1768612252899,-500.0,0.00021917,3]
[402224971,1768612252909,-500.0,0.00021917,3]
[402224972,1768612252919,-500.0,0.00021917,3]
[402224973,1768612252929,-706.88,0.00021917,3]
[402224974,1768612252939,-500.0,0.00021917,3]
[402224975,1768612252949,-703.68,0.00021917,3]
[402224976,1768612252960,-500.0,0.00021917,3]
[402224977,1768612252970,-500.0,0.00021917,3]
[402224978,1768612252980,-500.0,0.00021917,3]
[402224979,1768612252990,-500.0,0.00021917,3]
[402224980,1768612253000,-500.0,0.00021917,2]
[402224981,1768612253010,-883.96,0.00021917,3]
[402224982,1768612253020,-500.0,0.00021917,3]
[402224983,1768612253030,-500.0,0.00021917,3]
[402224984,1768612253041,-500.0,0.00021917,3]
[402224985,1768612253051,-1730.4,0.00021917,3]
[402224986,1768612253062,-2229.1,0.00021917,3]
[402224987,1768612253071,-870.56,0.00021917,3]
[402224988,1768612253081,-545.02471095,0.00021917,3]
[402224989,1768612253092,-1965.15,0.00021917,3]
[402224990,1768612253102,-500.0,0.00021917,3]
[402224991,1768612253112,-500.0,0.00021917,3]
[402224992,1768612253122,-500.87994636,0.00021917,3]
[402224993,1768612253132,-500.0,0.00021917,3]
[402224994,1768612253142,-1230.17,0.00021917,3]
[402224995,1768612253151,-500.0,0.00021917,3]
[402224996,1768612253161,-500.0,0.00021917,3]
[402224997,1768612253171,-500.0,0.00021917,3]
[402224998,1768612253180,-500.0,0.00021917,3]
[402224999,1768612253191,-500.0,0.00021917,3]
[402225000,1768612253201,-500.0,0.00021917,3]
[402225001,1768612253210,-716.67,0.00021917,3]
[402225002,1768612253220,-1014.11,0.00021917,3]
[402225003,1768612253231,-1793.94,0.00021917,3]
[402225004,1768612253241,-500.0,0.00021917,3]
[402225005,1768612253251,-1251.47,0.00021917,3]
[402225006,1768612253261,-500.0,0.00021917,3]
[402225007,1768612253271,-500.0,0.00021917,3]
[402225008,1768612253281,-500.0,0.00021917,3]
[402225009,1768612253290,-500.0,0.00021917,3]
[402225010,1768612253300,-1993.75,0.00021917,3]
[402225011,1768612253311,-502.12,0.00021917,3]
[402225012,1768612253320,-500.0,0.00021917,3]
[402225013,1768612253330,-500.0,0.00021917,3]
[402225014,1768612253340,-500.0,0.00021917,3]
[402225015,1768612253351,-500.0,0.00021917,3]
[402225016,1768612253360,-500.0,0.00021917,3]
[402225017,1768612253371,-500.0,0.00021917,3]
[402225018,1768612253380,-500.0,0.00021917,3]
[402225019,1768612253390,-1188.4,0.00021917,3]
[402225020,1768612253400,-500.0,0.00021917,3]
[402225021,1768612253410,-500.0,0.00021917,3]
[402225022,1768612253419,-1029.96,0.00021917,3]
[402225023,1768612253429,-525.76,0.00021917,3]
[402225024,1768612253439,-1119.18,0.00021917,3]
[402225025,1768612253449,-500.0,0.00021917,3]
[402225026,1768612253459,-855.99,0.00021917,3]
[402225027,1768612253470,-512.27,0.00021917,3]
[402225028,1768612253480,-1815.05,0.00021917,3]
[402225029,1768612253489,-281.82422947,0.00021917,3]
[402225030,1768612253502,-534.52,0.00021917,3]
[402225031,1768612253512,-500.0,0.00021917,3]
[402225032,1768612253521,-500.0,0.00021917,3]
[402225033,1768612253531,-535.55,0.00021917,3]
[402225034,1768612253541,-967.4,0.00021917,3]
[402225035,1768612253553,-500.0,0.00021917,3]
[402225036,1768612253562,-500.0,0.00021917,3]
[402225037,1768612253572,-500.0,0.00021917,3]
[402225038,1768612253583,-1136.87,0.00021917,3]
[402225039,1768612253593,-2084.88,0.00021917,3]
[402225040,1768612253604,-500.0,0.00021917,3]
[402225041,1768612253614,-1471.9,0.00021917,3]
[402225042,1768612253624,-500.0,0.00021917,3]
[402225043,1768612253634,-500.0,0.00021917,3]
[402225044,1768612253644,-500.0,0.00021917,3]
[402225045,1768612253654,-8798.3,0.00021917,3]
[402225046,1768612253664,-564.01,0.00021917,3]
[402225047,1768612253674,-500.0,0.00021917,3]
[402225048,1768612253683,-958.68,0.00021917,3]
[402225049,1768612253693,-500.0,0.00021917,3]
[402225050,1768612253703,-1479.47,0.00021917,3]
[402225051,1768612253955,-522.63653285,0.00021917,3]
[402225052,1768612254012,-500.0,0.00021917,3]
[402225053,1768612254022,-500.0,0.00021917,3]
[402225054,1768612254032,-787.07,0.00021917,3]
[402225055,1768612254042,-500.0,0.00021917,3]
[402225056,1768612254052,-434.51958275,0.00021917,3]
[402225057,1768612254063,-976.75,0.00021917,3]
[402225058,1768612254074,-1453.5,0.00021917,3]
[402225059,1768612254084,-500.0,0.00021917,3]
[402225060,1768612254094,-500.0,0.00021917,3]
[402225061,1768612254104,-1386.93,0.00021917,3]
[402225062,1768612254114,-500.0,0.00021917,3]
[402225063,1768612254124,-500.0,0.00021917,3]
[402225064,1768612254133,-500.0,0.00021917,3]
[402225065,1768612254143,-1742.45,0.00021917,3]
[402225066,1768612254153,-500.0,0.00021917,3]
[402225067,1768612254163,-500.0,0.00021917,3]
[402225068,1768612254173,-500.0,0.00021917,3]
[402225069,1768612254183,-500.0,0.00021917,3]
[402225070,1768612254192,-500.0,0.00021917,3]
[402225071,1768612254203,-3952.31,0.00021917,3]
[402225072,1768612254212,-500.0,0.00021917,3]
[402225073,1768612254222,-614.82,0.00021917,3]
[402225074,1768612254231,-500.0,0.00021917,3]
[402225075,1768612254241,-523.59,0.00021917,3]
[402225076,1768612254250,-500.0,0.00021917,3]
[402225077,1768612254260,-500.0,0.00021917,3]
[402225078,1768612254269,-1627.08,0.00021917,3]
[402225079,1768612254279,-500.0,0.00021917,3]
[402225080,1768612254288,-500.0,0.00021917,3]
[402225081,1768612254297,-500.0,0.00021917,3]
[402225082,1768612254306,-500.0,0.00021917,3]
[402225083,1768612254316,-500.0,0.00021917,3]
[402225084,1768612254325,-1692.55,0.00021917,3]
[402225085,1768612254334,-580.78,0.00021917,3]
[402225086,1768612254343,-500.0,0.00021917,3]
[402225087,1768612254353,-2942.71,0.00021917,3]
[402225088,1768612254363,-1514.63,0.00021917,3]
[402225089,1768612254373,-500.0,0.00021917,3]
[402225090,1768612254383,-632.02928591,0.00021917,3]
[402225091,1768612254393,-1493.78,0.00021917,3]
[402225092,1768612254402,-500.0,0.00021917,3]
[402225093,1768612254412,-500.0,0.00021917,3]
[402225094,1768612254421,-500.0,0.00021917,3]
[402225095,1768612254431,-500.0,0.00021917,3]
[402225096,1768612254440,-500.0,0.00021917,3]
[402225097,1768612254449,-500.0,0.00021917,3]
[402225098,1768612254458,-500.0,0.00021917,3]
[402225099,1768612254467,-660.52,0.00021917,3]
[402225100,1768612254477,-500.0,0.00021917,3]
[402225101,1768612254487,-1418.91,0.00021917,3]
[402225102,1768612254497,-730.62,0.00021917,3]
[402225103,1768612254508,-500.0,0.00021917,3]
[402225104,1768612254517,-500.0,0.00021917,3]
[402225105,1768612254527,-754.34,0.00021917,3]
[402225106,1768612254537,-500.0,0.00021917,3]
[402225107,1768612254546,-500.0,0.00021917,3]
[402225108,1768612254556,-500.0,0.00021917,3]
[402225109,1768612254565,-1145.41,0.00021917,3]
[402225110,1768612254574,-500.0,0.00021917,3]
[402225111,1768612254584,-500.0,0.00021917,3]
[402225112,1768612254594,-565.62,0.00021917,3]
[402225113,1768612254603,-500.0,0.00021917,3]
[402225114,1768612254612,-981.72,0.00021917,3]
[402225115,1768612254621,-500.0,0.00021917,3]
[402225116,1768612254632,-500.0,0.00021917,3]
[402225117,1768612254642,-593.53,0.00021917,3]
[402225118,1768612254651,-2793.44,0.00021917,3]
[402225119,1768612254661,-500.0,0.00021917,3]
[402225120,1768612254670,-500.0,0.00021917,3]
[402225121,1768612254680,-500.0,0.00021917,3]
[402225122,1768612254690,-856.9,0.00021917,3]
[402225123,1768612254699,-1473.27,0.00021917,3]
[402225124,1768612254712,-542.78,0.00021917,3]
[402225125,1768612254725,-500.0,0.00021917,3]
[402225126,1768612254734,-673.29,0.00021917,3]
[402225127,1768612254743,-500.0,0.00021917,3]
[402225128,1768612254753,-657.4,0.00021917,3]
[402225129,1768612254763,-500.0,0.00021917,3]
[402225130,1768612254773,-512.9810858,0.00021917,3]
[402225131,1768612254783,-713.13,0.00021917,3]
[402225132,1768612254793,-500.0,0.00021917,3]
[402225133,1768612254802,-1228.66,0.00021917,3]
[402225134,1768612254812,-1791.95,0.00021917,3]
[402225135,1768612254821,-500.0,0.00021917,3]
[402225136,1768612254831,-855.17,0.00021917,3]
[402225137,1768612254841,-500.0,0.00021917,3]
[402225138,1768612254850,-500.0,0.00021917,3]
[402225139,1768612254859,-756.59,0.00021917,3]
[402225140,1768612254869,-332.91217118,0.00021917,3]
[402225141,1768612254879,-500.0,0.00021917,3]
[402225142,1768612254889,-500.0,0.00021917,3]
[402225143,1768612254898,-642.347126,0.00021917,3]
[402225144,1768612254907,-665.41,0.00021917,3]
[402225145,1768612254917,-500.0,0.00021917,3]
[402225146,1768612254926,-602.92,0.00021917,3]
[402225147,1768612254936,-217.81700037,0.00021917,3]
[402225148,1768612254945,-507.96482271,0.00021917,3]
[402225149,1768612254955,-500.0,0.00021917,3]
[402225150,1768612254964,-962.94,0.00021917,3]
[402225151,1768612254973,-500.0,0.00021917,3]
[402225152,1768612254983,-307.51856445,0.00021917,3]
[402225153,1768612254993,-722.91,0.00021917,3]
[402225154,1768612255002,-500.0,0.00021917,3]
[402225155,1768612255011,-500.0,0.00021917,3]
[402225156,1768612255021,-1519.18,0.00021917,3]
[402225157,1768612255030,-500.0,0.00021917,3]
[402225158,1768612255041,-1639.28,0.00021917,3]
[402225159,1768612255050,-500.0,0.00021917,3]
[402225160,1768612255061,-528.9,0.00021917,3]
[402225161,1768612255071,-500.0,0.00021917,3]
[402225162,1768612255080,-500.0,0.00021917,3]
[402225163,1768612255090,-1186.99,0.00021917,3]
[402225164,1768612255100,-1994.44,0.00021917,3]
[402225165,1768612255110,-523.14,0.00021917,3]
[402225166,1768612255121,-500.0,0.00021917,3]
[402225167,1768612255132,-509.56797809,0.00021917,3]
[402225168,1768612255142,-933.57,0.00021917,3]
[402225169,1768612255151,-1547.34,0.00021917,3]
[402225170,1768612255160,-1004.8,0.00021917,3]
[402225171,1768612255169,-500.0,0.00021917,3]
[402225172,1768612255179,-16346.06,0.00021917,3]
[402225173,1768612255188,-500.0,0.00021917,3]
[402225174,1768612255197,-479.23437503,0.00021917,3]
[402225175,1768612255206,-510.77753586,0.00021917,3]
[402225176,1768612255215,-1226.67,0.00021917,3]
[402225177,1768612255224,-612.9,0.00021917,3]
[402225178,1768612255233,-656.08,0.00021917,3]
[402225179,1768612255242,-500.0,0.00021917,3]
[402225180,1768612255251,-500.0,0.00021917,3]
[402225181,1768612255260,-500.0,0.00021917,3]
[402225182,1768612255268,-1118.7,0.00021917,3]
[402225183,1768612255278,-1409.14,0.00021917,3]
[402225184,1768612255287,-500.0,0.00021917,3]
[402225185,1768612255295,-500.0,0.00021917,3]
[402225186,1768612255305,-500.0,0.00021917,3]
[402225187,1768612255314,-500.0,0.00021917,3]
[402225188,1768612255323,-500.0,0.00021917,3]
[402225189,1768612255333,-500.0,0.00021917,3]
[402225190,1768612255342,-500.0,0.00021917,3]
[402225191,1768612255351,-500.0,0.00021917,3]
[402225192,1768612255361,-1384.22,0.00021917,3]
[402225193,1768612255370,-500.0,0.00021917,3]
[402225194,1768612255380,-500.0,0.00021917,3]
[402225195,1768612255389,-500.0,0.00021917,3]
[402225196,1768612255406,-500.0,0.00021917,3]
[402225197,1768612255418,-500.0,0.00021917,3]
[402225198,1768612255427,-655.85,0.00021917,3]
[402225199,1768612255437,-500.0,0.00021917,3]
[402225200,1768612255447,-500.0,0.00021917,3]
[402225201,1768612255456,-1683.12,0.00021917,3]
[402225202,1768612255465,-500.0,0.00021917,3]
[402225203,1768612255475,-1141.76,0.00021917,3]
[402225204,1768612255484,-2466.84,0.00021917,3]
[402225205,1768612255494,-500.0,0.00021917,3]
[402225206,1768612255503,-500.0,0.00021917,3]
[402225207,1768612255513,-500.0,0.00021917,3]
[402225208,1768612255523,-500.0,0.00021917,3]
[402225209,1768612255533,-500.0,0.00021917,2]
[402225210,1768612255542,-500.0,0.00021917,3]
[402225211,1768612255553,-703.27,0.00021917,3]
[402225212,1768612255562,-500.0,0.00021917,3]
[402225213,1768612255574,-506.62545891,0.00021917,3]
[402225214,1768612255586,-762.01,0.00021917,3]
[402225215,1768612255596,-500.0,0.00021917,3]
[402225216,1768612255606,-1884.7,0.00021917,3]
[402225217,1768612255615,-754.32,0.00021917,3]
[402225218,1768612255625,-500.0,0.00021917,3]
[402225219,1768612255634,-504.06,0.00021917,3]
[402225220,1768612255643,-500.0,0.00021917,3]
[402225221,1768612255652,-346.60467188,0.00021917,3]
[402225222,1768612255661,-500.0,0.00021917,3]
[402225223,1768612255670,-500.0,0.00021917,3]
[402225224,1768612255680,-500.0,0.00021917,3]
[402225225,1768612255689,-355.71844612,0.00021917,3]
[402225226,1768612255699,-1595.17,0.00021917,3]
[402225227,1768612255712,-1407.78,0.00021917,3]
[402225228,1768612255721,-1591.45,0.00021917,3]
[402225229,1768612255730,-500.0,0.00021917,3]
[402225230,1768612255741,-1092.06,0.00021917,3]
[402225231,1768612255750,-500.0,0.00021917,3]
[402225232,1768612255759,-899.14,0.00021917,3]
[402225233,1768612255768,-500.0,0.00021917,3]
[402225234,1768612255778,-500.0,0.00021917,3]
[402225235,1768612255792,-885.73,0.00021917,3]
[402225236,1768612255801,-500.0,0.00021917,3]
[402225237,1768612255812,-500.0,0.00021917,3]
[402225238,1768612255822,-1029.09,0.00021917,3]
[402225239,1768612255831,-500.0,0.00021917,3]
[402225240,1768612255840,-615.64,0.00021917,3]
[402225241,1768612255850,-500.0,0.00021917,3]
[402225242,1768612255860,-500.0,0.00021917,3]
[402225243,1768612255869,-818.32,0.00021917,3]
[402225244,1768612255879,-500.0,0.00021917,2]
[402225245,1768612255888,-500.0,0.00021917,3]
[402225246,1768612255898,-500.0,0.00021917,3]
[402225247,1768612255908,-500.0,0.00021917,3]
[402225248,1768612255918,-500.0,0.00021917,3]
[402225249,1768612255929,-500.0,0.00021917,3]
[402225250,1768612255941,-500.0,0.00021917,3]
[402225251,1768612255950,-1293.79,0.00021917,3]
[402225252,1768612255959,-500.0,0.00021917,3]
[402225253,1768612255969,-355.96933356,0.00021917,3]
[402225254,1768612255978,-599.42,0.00021917,3]
[402225255,1768612255987,-685.41,0.00021917,3]
[402225256,1768612255997,-1974.67,0.00021917,3]
[402225257,1768612256008,-500.0,0.00021917,3]
[402225258,1768612256017,-500.0,0.00021917,3]
[402225259,1768612256027,-1560.37,0.00021917,3]
[402225260,1768612256036,-500.0,0.00021917,3]
[402225261,1768612256045,-500.0,0.00021917,3]
[402225262,1768612256055,-500.0,0.00021917,2]
[402225263,1768612256064,-500.0,0.00021917,3]
[402225264,1768612256074,-500.0,0.00021917,3]
[402225265,1768612256084,-500.0,0.00021917,3]
[402225266,1768612256094,-500.0,0.00021917,3]
[402225267,1768612256104,-500.0,0.00021917,3]
[402225268,1768612256114,-500.0,0.00021917,3]
[402225269,1768612256123,-2128.03,0.00021917,3]
[402225270,1768612256133,-233.05369589,0.00021917,3]
[402225271,1768612256143,-2225.62,0.00021917,3]
[402225272,1768612256152,-500.0,0.00021917,3]
[402225273,1768612256162,-500.0,0.00021917,2]
[402225274,1768612256171,-500.0,0.00021917,3]
[402225275,1768612256180,-500.0,0.00021917,3]
[402225276,1768612256190,-931.4,0.00021917,3]
[402225277,1768612256200,-500.0,0.00021917,3]
[402225278,1768612256209,-500.0,0.00021917,3]
[402225279,1768612256218,-500.0,0.00021917,3]
[402225280,1768612256227,-500.0,0.00021917,3]
[402225281,1768612256236,-500.0,0.00021917,3]
[402225282,1768612256245,-500.0,0.00021917,2]
[402225283,1768612256254,-895.04,0.00021917,3]
[402225284,1768612256264,-1364.94,0.00021917,3]
[402225285,1768612256272,-500.0,0.00021917,3]
[402225286,1768612256282,-500.0,0.00021918,5]
[402225287,1768612256291,-151.0,0.00021918,2]
[402225288,1768612256301,-151.0,0.00021918,2]
[402225289,1768612256379,-151.0,0.00021918,2]
[402225290,1768612256388,-151.0,0.00021918,2]
[402225291,1768612256398,-151.0,0.00021918,2]
[402225292,1768612256407,-159.231334,0.00021918,2]
[402225293,1768612256415,-170.807087,0.00021918,2]
[402225294,1768612256424,-151.0,0.00021918,2]
[402225295,1768612256434,-151.0,0.00021918,2]
[402225296,1768612256443,-151.0,0.00021918,2]
[402225297,1768612256452,-151.0,0.00021918,2]
[402225298,1768612256461,-151.0,0.00021918,2]
[402225299,1768612256470,-151.0,0.00021918,2]
[402225300,1768612256480,-151.0,0.00021918,2]
[402225301,1768612256490,-151.0,0.00021918,2]
[402225302,1768612256500,-151.0,0.00021918,2]
[402225303,1768612256510,-151.0,0.00021918,2]
[402225304,1768612256520,-151.0,0.00021918,2]
[402225305,1768612256531,-151.0,0.00021918,2]
[402225306,1768612256543,-194.709566,0.00021918,2]
[402225307,1768612256553,-166.980336,0.00021918,2]
[402225308,1768612256563,-151.116343,0.00021918,2]
[402225309,1768612256572,-247.090205,0.00021918,2]
[402225310,1768612256581,-151.0,0.00021918,2]
[402225311,1768612256590,-151.0,0.00021918,2]
[402225312,1768612256600,-151.0,0.00021918,2]
[402225313,1768612256609,-151.0,0.00021918,2]
[402225314,1768612256619,-151.0,0.00021918,2]
[402225315,1768612256628,-151.0,0.00021918,2]
[402225316,1768612256637,-151.0,0.00021918,2]
[402225317,1768612256647,-151.0,0.00021918,2]
[402225318,1768612256656,-151.0,0.00021918,2]
[402225319,1768612256666,-151.0,0.00021918,2]
[402225320,1768612256676,-151.0,0.00021918,2]
[402225321,1768612256686,-151.0,0.00021918,2]
[402225322,1768612256695,-151.0,0.00021918,2]
[402225323,1768612256705,-152.289267,0.00021918,2]
[402225324,1768612256716,-151.0,0.00021918,2]
[402225325,1768612256725,-206.546872,0.00021918,2]
[402225326,1768612256734,-234.643774,0.00021918,2]
[402225327,1768612256743,-151.0,0.00021918,2]
[402225328,1768612256753,-151.0,0.00021918,2]
[402225329,1768612256763,-235.182336,0.00021918,2]
[402225330,1768612256772,-151.0,0.00021918,2]
[402225331,1768612256781,-151.0,0.00021918,2]
[402225332,1768612256790,-151.0,0.00021918,2]
[402225333,1768612256799,-151.0,0.00021918,2]
[402225334,1768612256808,-151.0,0.00021918,2]
[402225335,1768612256817,-151.0,0.00021918,2]
[402225336,1768612256827,-151.0,0.00021918,2]
[402225337,1768612256836,-151.0,0.00021918,2]
[402225338,1768612256845,-151.0,0.00021918,2]
[402225339,1768612256856,-151.0,0.00021918,2]
[402225340,1768612256865,-151.0,0.00021918,2]
[402225341,1768612256875,-635.216406,0.00021918,2]
[402225342,1768612256884,-151.0,0.00021918,2]
[402225343,1768612256894,-635.216406,0.00021918,2]
[402225344,1768612256904,-151.0,0.00021918,2]
[402225345,1768612256914,-635.216406,0.00021918,2]
[402225346,1768612256924,-232.965637,0.00021918,2]
[402225347,1768612256934,-635.216406,0.00021918,2]
[402225348,1768612256944,-635.216406,0.00021918,2]
[402225349,1768612256954,-635.216406,0.00021918,2]
[402225350,1768612256964,-635.216406,0.00021918,2]
[402225351,1768612256974,-635.216406,0.00021918,2]
[402225352,1768612256984,-635.216406,0.00021918,2]
[402225353,1768612256994,-635.216406,0.00021918,2]
[402225354,1768612257003,-635.216406,0.00021918,2]
[402225355,1768612257013,-635.216406,0.00021918,2]
[402225356,1768612257023,-635.216406,0.00021918,2]
[402225357,1768612257034,-635.216406,0.00021918,2]
[402225358,1768612257043,-635.216406,0.00021918,2]
[402225359,1768612257052,-635.216406,0.00021918,2]
[402225360,1768612257062,-635.216406,0.00021918,2]
[402225361,1768612257075,-635.216406,0.00021918,2]
[402225362,1768612257087,-635.216406,0.00021918,2]
[402225363,1768612257096,-635.216401,0.00021918,2]
[402225364,1768612257107,-151.0,0.00021918,2]
[402225365,1768612257116,-151.0,0.00021918,2]
[402225366,1768612257126,-151.0,0.00021918,2]
[402225367,1768612257136,-151.0,0.00021918,2]
[402225368,1768612257146,-151.0,0.00021918,2]
[402225369,1768612257156,-151.0,0.00021918,2]
[402225370,1768612257165,-151.0,0.00021918,2]
[402225371,1768612257174,-151.0,0.00021918,2]
[402225372,1768612257183,-161.721149,0.00021918,2]
[402225373,1768612257191,-151.0,0.00021918,2]
[402225374,1768612257200,-151.0,0.00021918,2]
[402225375,1768612257211,-154.884541,0.00021918,2]
[402225376,1768612257221,-151.0,0.00021918,2]
[402225377,1768612257231,-158.320232,0.00021918,2]
[402225378,1768612257240,-189.511198,0.00021918,2]
[402225379,1768612257250,-151.0,0.00021918,2]
[402225380,1768612257260,-151.0,0.00021918,2]
[402225381,1768612257270,-151.0,0.00021918,2]
[402225382,1768612257279,-151.0,0.00021918,2]
[402225383,1768612257289,-275.8274,0.00021918,2]
[402225384,1768612257298,-151.0,0.00021918,2]
[402225385,1768612257307,-151.0,0.00021918,2]
[402225386,1768612257316,-226.926693,0.00021918,2]
[402225387,1768612257326,-151.0,0.00021918,2]
[402225388,1768612257336,-151.0,0.00021918,2]
[402225389,1768612257346,-151.0,0.00021918,2]
[402225390,1768612257355,-151.0,0.00021918,2]
[402225391,1768612257364,-151.0,0.00021918,2]
[402225392,1768612257376,-151.0,0.00021918,2]
[402225393,1768612257385,-272.419071,0.00021918,2]
[402225394,1768612257394,-235.448979,0.00021918,2]
[402225395,1768612257404,-235.448979,0.00021918,2]
[402225396,1768612257413,-235.448979,0.00021918,2]
[402225397,1768612257423,-235.448979,0.00021918,2]
[402225398,1768612257432,-235.448979,0.00021918,2]
[402225399,1768612257441,-235.448979,0.00021918,2]
[402225400,1768612257451,-235.448979,0.00021918,2]
[402225401,1768612257461,-235.448979,0.00021918,2]
[402225402,1768612257471,-235.448979,0.00021918,2]
[402225403,1768612257481,-235.448979,0.00021918,2]
[402225404,1768612257491,-235.448979,0.00021918,2]
[402225405,1768612257500,-235.448979,0.00021918,2]
[402225406,1768612257510,-151.0,0.00021918,2]
[402225407,1768612257519,-235.448979,0.00021918,2]
[402225408,1768612257529,-151.0,0.00021918,2]
[402225409,1768612257539,-235.448979,0.00021918,2]
[402225410,1768612257549,-151.0,0.00021918,2]
[402225411,1768612257558,-235.448979,0.00021918,2]
[402225412,1768612257568,-151.0,0.00021918,2]
[402225413,1768612257577,-235.448979,0.00021918,2]
[402225414,1768612257587,-151.0,0.00021918,2]
[402225415,1768612257598,-235.448979,0.00021918,2]
[402225416,1768612257607,-151.0,0.00021918,2]
[402225417,1768612257617,-235.448979,0.00021918,2]
[402225418,1768612257627,-1868.229357,0.00021918,2]
[402225419,1768612257636,-164.316659,0.00021918,2]
[402225420,1768612257645,-235.448979,0.00021918,2]
[402225421,1768612257655,-1868.229357,0.00021918,2]
[402225422,1768612257664,-235.448975,0.00021918,2]
[402225423,1768612257674,-1868.229357,0.00021918,2]
[402225424,1768612257683,-1868.229357,0.00021918,2]
[402225425,1768612257692,-1868.229357,0.00021918,2]
[402225426,1768612257703,-1868.229357,0.00021918,2]
[402225427,1768612257718,-1868.229357,0.00021918,2]
[402225428,1768612257727,-151.0,0.00021918,2]
[402225429,1768612257736,-1868.229357,0.00021918,2]
[402225430,1768612257745,-151.0,0.00021918,2]
[402225431,1768612257754,-1868.229357,0.00021918,2]